Cogmind - Beta 14 @@@ ROGUE MODE // 2024.11.10 @ 14:42:03 Player: Blue Result: Destroyed by H-55 Commando with Gauss Rifle Performance ------------- Evolutions (2) 1000 Regions Visited (7) 1400 Robots Destroyed (49) 245 Value Destroyed (1516) 1516 Prototype IDs (31) 620 Alien Tech Used (0) 0 Bonus (1004) 1004 TOTAL SCORE: 5785 Bonus ------- High Alert Combat Kills 4 Entered Garrisons 200 Used RIF Installer 500 Aligned with FarCom 300 Cogmind --------- Core Integrity 0/550 Matter 266/300 Energy 100/100 System Corruption 2% Temperature Cool (0) Movement Walking (110) Location -8/Materials Parts ------- > --- POWER (1) -------- (None) > --- PROPULSION (3) --- Aluminum Leg Carbon-fiber Leg VSS Leg > --- UTILITY (5) ------ Lightpack 2.0 Utility Shielding > --- WEAPON (2) ------- Heavy Particle Gun Maul > --- INVENTORY (40) --- Light Ion Engine Light Nuclear Core Aluminum Leg VSS Leg Compact Wheel Aerolev Unit Improved Heat Sink Cooling System Reaction Control System Improved Utility Shielding Light Armor Plating Insulated Plating Hardlight Generator Small Laser Heavy Particle Gun Heavy Assault Rifle Heavy Assault Rifle Autogun High-powered Shotgun Shock Bomb Launcher Improved Grenade Launcher Mining Laser Hammer Fusion Bomb Trap Fusion Bomb Trap EM Surge Trap EM Surge Trap EM Surge Trap EM Surge Trap Peak State ------------ > --- POWER ------------ Improved Ion Engine > --- PROPULSION ------- Aluminum Leg Carbon-fiber Leg VSS Leg > --- UTILITY ---------- Lightpack 2.0 Utility Shielding Insulated Plating > --- WEAPON ----------- Heavy Particle Gun Heavy Particle Gun > --- INVENTORY -------- Light Ion Engine Light Nuclear Core Aluminum Leg Compact Wheel Aerolev Unit Improved Heat Sink Cooling System Reaction Control System Improved Utility Shielding Light Armor Plating Light Armor Plating Hardlight Generator Small Laser Heavy Assault Rifle Heavy Assault Rifle Autogun High-powered Shotgun Shock Bomb Launcher Improved Grenade Launcher Mining Laser Hammer Maul Fusion Bomb Trap Fusion Bomb Trap EM Surge Trap EM Surge Trap EM Surge Trap EM Surge Trap [Rating: 56] Favorites ----------- Power Light Ion Engine Engine Light Ion Engine Power Core Light Nuclear Core Propulsion Compact Wheel Treads Light Treads Leg Carbon-fiber Leg Wheel Compact Wheel Flight Unit Surge Thruster Utility Lightpack 2.0 Device Improved Heat Sink Storage Lightpack 2.0 Protection Light Armor Plating Weapon Heavy Particle Gun Energy Gun Heavy Particle Gun Energy Cannon Heavy Particle Cannon Ballistic Gun Assault Rifle Ballistic Cannon Assault Cannon Launcher Grenade Launcher Special Weapon Mining Laser Impact Weapon Hammer Build | -11 -10 -10 -10 -9 -8 -8 -8 ------- Run | Yrd Mat Min Exi Min Mat Gar Mat Slots Evolved 4 | . . . . . 4 . . Power . | . . . . . . . . Propulsion 1 | . . . . . 1 . . Utility 3 | . . . . . 3 . . Weapon . | . . . . . . . . Parts Attached 74 | 10 3 . 4 2 16 19 20 Power 7 | 1 . . . . 2 2 2 Engine 3 | 1 . . . . . . 2 Core 4 | . . . . . 2 2 . Reactor . | . . . . . . . . Propulsion 16 | 4 . . 2 . 3 2 5 Treads 5 | 2 . . . . 1 2 . Leg 6 | . . . . . 1 . 5 Wheel 4 | 2 . . 2 . . . . Hover . | . . . . . . . . Flight 1 | . . . . . 1 . . Utility 21 | 2 2 . 2 1 4 3 7 Device 10 | 1 2 . . 1 3 1 2 Storage 4 | 1 . . 2 . 1 . . Processor . | . . . . . . . . Hackware . | . . . . . . . . Protection 7 | . . . . . . 2 5 Artifact . | . . . . . . . . Weapon 30 | 3 1 . . 1 7 12 6 Energy Gun 10 | 2 . . . . 4 1 3 Energy Cannon 3 | . . . . . 1 2 . Ballistic Gun 2 | 1 . . . . 1 . . Ballistic Cannon 4 | . . . . . . 4 . Launcher 5 | . 1 . . . . 4 . Special Weapon 1 | . . . . 1 . . . Impact Weapon 5 | . . . . . 1 1 3 Slashing Weapon . | . . . . . . . . Piercing Weapon . | . . . . . . . . Special Melee Weapon . | . . . . . . . . Unidentified Prototypes 3 | . . . . 1 2 . . Parts Lost 22 | . 1 . . . 5 9 7 Power 3 | . . . . . . 2 1 Propulsion 6 | . . . . . 3 2 1 Utility 7 | . 1 . . . 1 2 3 Weapon 6 | . . . . . 1 3 2 Highest Loss Streak 6 | . 1 . . . 3 6 3 To Critical Strikes . | . . . . . . . . Average Slot Usage (%) 76 | . 99 100 96 86 68 60 67 Engine 7 | . 14 14 14 14 1 . 8 Core 3 | . . . . . 7 8 . Treads 1 | . . . . . . 4 1 Leg 3 | . . . . . 4 . 13 Wheel 11 | . 28 28 28 28 11 . . Flight 2 | . . . . . . 8 . Device 10 | . 13 14 10 1 16 8 7 Storage 10 | . 14 14 14 14 9 9 9 Protection 3 | . . . . . . 2 10 Energy Gun 5 | . 5 . . . 9 1 13 Energy Cannon 1 | . . . . . 3 5 . Ballistic Gun 5 | . 14 14 14 14 3 . . Ballistic Cannon 2 | . . . . . . 8 1 Launcher 4 | . 8 14 14 12 . 1 . Peak Build Rating 56 | 7 7 7 9 18 49 51 56 Average Rating 32 | 5 6 7 7 9 46 47 49 On Entrance 17 | . 7 7 7 9 18 46 44 Naked Turns . | . . . . . . . . Heaviest Build 25 | 12 14 14 19 18 22 25 22 Greatest Support 40 | 40 32 32 32 26 26 40 37 Greatest Overweight (x) 7 | . . . . . 5 7 1 Average Overweight (x) . | . . . . . 1 3 . Largest Inventory Capacity 40 | 8 8 8 10 10 40 40 40 Average Capacity 27 | 7 8 8 9 10 40 40 40 Most Carried 29 | 5 8 8 10 10 11 22 29 Average Carried 12 | 1 7 8 8 9 8 16 20 Final Capacity 40 | 8 8 8 10 10 40 40 40 Final Carried 29 | 5 8 8 10 10 11 17 29 Class Distribution -------------------- 56% | Hauler-Mutant 38% | Mutant 4% | Hauler-Skirmisher Dominant Class ---------------- Mutant | -10/Materials Mutant | -10/Mines Mutant | -10/Exiles Mutant | -9/Mines Hauler-Mutant | -8/Materials Hauler-Mutant | -8/Garrison Hauler-Mutant | -8/Materials Resources | -11 -10 -10 -10 -9 -8 -8 -8 ----------- Run | Yrd Mat Min Exi Min Mat Gar Mat Matter Collected 1325 | 248 191 77 . 46 130 266 367 Remotely . | . . . . . . . . Salvage Created 1570 | 143 227 . . 28 385 304 483 Parts 80 | 12 19 . . 3 17 13 16 Haulers Intercepted 1 | . . . . . 1 . . Recyclers Shooed 2 | 1 1 . . . . . . Parts Field Recycled . | . . . . . . . . Retrieved Matter . | . . . . . . . . Parts Self-Destructed . | . . . . . . . . Prevented . | . . . . . . . . Kills | -11 -10 -10 -10 -9 -8 -8 -8 ------- Run | Yrd Mat Min Exi Min Mat Gar Mat Combat Hostiles Destroyed 37 | . 4 . . . 8 13 12 Melee 4 | . . . . . 1 . 3 Guns 17 | . 4 . . . 4 . 9 Cannons 9 | . . . . . 1 8 . AOE 5 | . . . . . . 5 . Classes Destroyed 11 | 2 3 . . 1 3 . 2 Worker 2 | . 1 . . . 1 . . Builder 2 | . . . . 1 . . 1 Tunneler 4 | 4 . . . . . . . Hauler 1 | . . . . . 1 . . Recycler 1 | 1 . . . . . . . Watcher 2 | . 2 . . . . . . Swarmer 4 | . . . . . . . 4 Cutter 4 | . . . . . 3 1 . Grunt 23 | . 4 . . . 4 10 5 Brawler 3 | . . . . . 1 2 . Sentry 3 | . . . . . . . 3 Best Kill Streak 5 | 3 1 . . 1 4 5 3 Combat Bots Only 5 | . 1 . . . 3 5 3 Max Kills in Single Turn 1 | 1 1 . . 1 1 1 1 Gunslinging . | . . . . . . . . Exploded 1 | . . . . . . 1 . Melee 1 | . . . . . 1 . 1 Uniques/NPCs Destroyed . | . . . . . . . . Combat | -11 -10 -10 -10 -9 -8 -8 -8 -------- Run | Yrd Mat Min Exi Min Mat Gar Mat Hostile Shots Fired 264 | . 24 . . . 47 88 105 Missed 62 | . 4 . . . 5 27 26 Damage Taken 2941 | . 236 . . . 733 1020 952 Core 612 | . 61 . . . 206 185 160 Absorbed by Shields . | . . . . . . . . Redirected to Shielding 16 | . . . . . . . 16 Core Remaining (%) 87 | 100 . . . 75 . . . Volleys Fired 148 | 14 34 3 . 5 29 30 33 Largest 2 | 2 2 1 . 1 2 2 2 Hottest 119 | 60 60 20 . 100 115 119 110 Shots Fired 258 | 28 49 3 . 5 58 49 66 Gun 182 | 28 42 3 . 2 46 . 61 Cannon 48 | . . . . . 12 31 5 Launcher 25 | . 7 . . . . 18 . Special 3 | . . . . 3 . . . Kinetic 75 | 14 27 3 . 2 4 20 5 Thermal 158 | 14 15 . . 3 54 11 61 Explosive 25 | . 7 . . . . 18 . Electromagnetic . | . . . . . . . . Robot Hit Streak 12 | 6 6 4 . 1 12 9 8 Robot Miss Streak 6 | 2 2 . . 1 6 2 3 Penetration Max . | . . . . . . . . Secondary Targets . | . . . . . . . . Shots Hit Robots 173 | 16 26 3 . 1 46 33 48 Core Hits 88 | 6 12 1 . 1 16 35 17 Critical Kills . | . . . . . . . . Critical Parts Destroyed 1 | . . . . . . . 1 Critical Strikes 6 | . . . . . 3 . 3 Burn 5 | . . . . . 3 . 2 Smash 1 | . . . . . . . 1 Melee Attacks 35 | . . . . . 7 . 28 Impact 35 | . . . . . 7 . 28 Slashing . | . . . . . . . . Piercing . | . . . . . . . . Sneak Attacks 2 | . . . . . 1 . 1 Combat Hostiles . | . . . . . . . . Follow-up Attacks . | . . . . . . . . Damage Inflicted 4231 | 201 403 33 . 10 898 1492 1194 Guns 1947 | 201 313 33 . 10 576 . 814 Cannons 773 | . . . . . 200 528 45 Explosions 1033 | . 69 . . . . 964 . Melee 420 | . . . . . 122 . 298 Ramming 58 | . 21 . . . . . 37 Kinetic 841 | 110 225 33 . 10 40 378 45 Thermal 1879 | 91 88 . . . 736 150 814 Explosive 1033 | . 69 . . . . 964 . Electromagnetic . | . . . . . . . . Impact 420 | . . . . . 122 . 298 Slashing . | . . . . . . . . Piercing . | . . . . . . . . Highest Corruption 2 | . . . . . . 2 2 Average Corruption 1 | . . . . . . 1 2 Corruption Purged . | . . . . . . . . Corruption Blocked . | . . . . . . . . Effects 26 | . . . . . . 6 20 Message Errors 6 | . . . . . . 3 3 Matter Fused 3 | . . . . . . . 3 Heat Flow Errors 2 | . . . . . . . 2 Energy Discharges 6 | . . . . . . 2 4 Data Loss (minor) 8 | . . . . . . 1 7 Data Loss (major) 1 | . . . . . . . 1 Overload Shots . | . . . . . . . . Overflow Damage 196 | . 8 . . . 26 1 161 Projectiles 1 | . . . . . . 1 . Explosions 8 | . 8 . . . . . . Melee 187 | . . . . . 26 . 161 Knockbacks 7 | . . . . . 1 4 2 Impact 2 | . . . . . 1 . 1 Kinetic 5 | . . . . . . 4 1 Secondary . | . . . . . . . . Self-Inflicted Damage 9 | . 9 . . . . . . Shots . | . . . . . . . . Rammed 5 | . 5 . . . . . . Targets Rammed 11 | . 5 . . . . . 6 Kicked 6 | . . . . . . . 6 Crushed . | . . . . . . . . Highest Temperature 316 | . 58 . . 60 279 265 316 Average Temperature 87 | . 30 . . 32 90 92 109 Received Heat Transfer 1287 | . 126 . . . 261 504 396 Effects 2 | . . . . . . . 2 Energy Bleed 2 | . . . . . . . 2 Siege Activations . | . . . . . . . . Robots Corrupted 2 | . . . . . 1 . 1 Combat Hostiles 1 | . . . . . 1 . . Parts Fried 6 | . . . . . 3 . 3 Impact Corruptions 7 | . . . . . 1 . 6 Robots Melted 1 | . . . . . 1 . . Combat Hostiles 1 | . . . . . 1 . . Parts Melted 7 | . . . . . 1 . 6 Heat Transferred 3942 | 200 200 . . . 1581 222 1739 Parts Sabotaged . | . . . . . . . . Parts Stolen . | . . . . . . . . Parts Stripped . | . . . . . . . . Power Chain Reactions . | . . . . . . . . Alert | -11 -10 -10 -10 -9 -8 -8 -8 ------- Run | Yrd Mat Min Exi Min Mat Gar Mat Peak Influence 537 | 25 254 58 . 5 171 537 316 Initial 237 | . 16 58 . . . 16 237 Average 108 | 10 117 58 . 1 42 144 173 Maximum Alert Level 2 | . 1 . . . . 2 1 Low Security (%) 84 | 100 88 100 . 100 100 77 69 Level 1 11 | . 11 . . . . 8 30 Level 2 3 | . . . . . . 13 . Level 3 . | . . . . . . . . Level 4 . | . . . . . . . . Level 5 . | . . . . . . . . High Security . | . . . . . . . . Max Security . | . . . . . . . . Squads Dispatched 9 | . 2 . . . 2 . 5 Investigation 2 | . 1 . . . . . 1 Extermination . | . . . . . . . . Reinforcement 4 | . 1 . . . 2 . 1 Assault . | . . . . . . . . Garrison 3 | . . . . . . . 3 Intercept . | . . . . . . . . Searches Triggered . | . . . . . . . . Construction Impeded . | . . . . . . . . Haulers Reinforced . | . . . . . . . . Active Scanning Responses . | . . . . . . . . Cargo Convoy Interrupts . | . . . . . . . . Stealth | -11 -10 -10 -10 -9 -8 -8 -8 --------- Run | Yrd Mat Min Exi Min Mat Gar Mat Distress Signals 2 | . 1 . . . . . 1 Communications Jammed . | . . . . . . . . Distress Signals . | . . . . . . . . Times Spotted 62 | . 11 . . . 12 21 18 Peak Tracking Total 6 | . 2 . . . 5 5 6 Tactical Retreats 6 | . 1 . . . . 2 3 Traps | -11 -10 -10 -10 -9 -8 -8 -8 ------- Run | Yrd Mat Min Exi Min Mat Gar Mat Traps Triggered 3 | . 1 . . . . 2 . Indirectly . | . . . . . . . . Trap Hack Attempts . | . . . . . . . . Triggered . | . . . . . . . . Disarmed . | . . . . . . . . Reprogrammed . | . . . . . . . . Reused 1 | . . . . . . 1 . Traps Extracted . | . . . . . . . . Installed 6 | . . . . . . 6 . Triggered 1 | . . . . . . 1 . Most Traps Carried 10 | . . . . . . 10 6 Machines | -11 -10 -10 -10 -9 -8 -8 -8 ---------- Run | Yrd Mat Min Exi Min Mat Gar Mat Machines Disabled 4 | . . . . . 2 1 1 Max in Single Turn 1 | . . . . . 1 1 1 Machines Repaired . | . . . . . . . . Machines Dismantled . | . . . . . . . . Machines Sabotaged . | . . . . . . . . Overloaded Fab Kills . | . . . . . . . . Hacking | -11 -10 -10 -10 -9 -8 -8 -8 --------- Run | Yrd Mat Min Exi Min Mat Gar Mat Machines Accessed 12 | . 3 . 2 . 2 2 3 Terminals 8 | . 3 . . . 1 2 2 Fabricators . | . . . . . . . . Repair Stations . | . . . . . . . . Recycling Units . | . . . . . . . . Scanalyzers 1 | . . . . . . . 1 Garrison Access 1 | . . . . . 1 . . Total Hacks 49 | . 6 . 24 . 9 3 7 Successful 34 | . 3 . 24 . 3 1 3 Failed 15 | . 3 . . . 6 2 4 Catastrophic 4 | . 2 . . . . 1 1 Database Lockouts . | . . . . . . . . Manual 9 | . 3 . 1 . 2 . 3 Terminals 19 | . 6 . . . 5 3 5 Fabricators . | . . . . . . . . Repair Stations . | . . . . . . . . Recycling Units . | . . . . . . . . Scanalyzers 2 | . . . . . . . 2 Garrison Access 4 | . . . . . 4 . . Terminal Hacks 31 | . 3 . 24 . 2 1 1 Record 23 | . . . 23 . . . . Prototype ID Bank 3 | . 1 . . . 1 . 1 Branch Access Points 1 | . 1 . . . . . . Terminal Index 1 | . 1 . . . . . . Registered Prototypes 1 | . . . . . 1 . . Patrol Navigation 1 | . . . . . . 1 . Derelict Proto ID Bank 1 | . . . 1 . . . . Fabricator Hacks . | . . . . . . . . Repair Station Hacks . | . . . . . . . . Recycling Unit Hacks . | . . . . . . . . Scanalyzer 2 | . . . . . . . 2 Insert Component 1 | . . . . . . . 1 Analyze 1 | . . . . . . . 1 Garrison Access Hacks 1 | . . . . . 1 . . Unlock Access 1 | . . . . . 1 . . Unauthorized Hacks . | . . . . . . . . Terminals . | . . . . . . . . Fabricators . | . . . . . . . . Repair Stations . | . . . . . . . . Recycling Units . | . . . . . . . . Scanalyzers . | . . . . . . . . Garrison Access . | . . . . . . . . Data Cores Recovered . | . . . . . . . . Used . | . . . . . . . . Hacking Detections 8 | . 2 . . . 2 2 2 Full Trace Events 1 | . . . . . . . 1 Feedback Events . | . . . . . . . . Feedback Blocked . | . . . . . . . . Robot Schematics Acquired . | . . . . . . . . Robots Built . | . . . . . . . . Authchips . | . . . . . . . . Time . | . . . . . . . . Total Robot Build Rating . | . . . . . . . . Part Schematics Acquired 1 | . . . . . . . 1 Parts Built . | . . . . . . . . Authchips . | . . . . . . . . Time . | . . . . . . . . Total Part Build Rating . | . . . . . . . . Parts Repaired . | . . . . . . . . Time . | . . . . . . . . Parts Recycled . | . . . . . . . . Recycled Matter . | . . . . . . . . Retrieved Matter . | . . . . . . . . Retrieved Components . | . . . . . . . . Parts Scanalyzed 1 | . . . . . . . 1 Part Schematics Acquired 1 | . . . . . . . 1 Parts Damaged . | . . . . . . . . Bothacking | -11 -10 -10 -10 -9 -8 -8 -8 ------------ Run | Yrd Mat Min Exi Min Mat Gar Mat Used RIF Installer 1 | . . . . . . 1 . Robots Hacked . | . . . . . . . . Non-combat . | . . . . . . . . Combat . | . . . . . . . . Robot Hacks Applied . | . . . . . . . . Relay Couplers Released . | . . . . . . . . Fabnet Peak Effective % . | . . . . . . . . Robots Rewired . | . . . . . . . . Allies Hacked . | . . . . . . . . Hacks Repelled . | . . . . . . . . Allies | -11 -10 -10 -10 -9 -8 -8 -8 -------- Run | Yrd Mat Min Exi Min Mat Gar Mat Total Allies 1 | . . . . 1 . . . Largest Group 1 | . . . . 1 . . . Highest-Rated Group 31 | . . . . 31 . . . Highest-Rated Ally 31 | . . . . 31 . . . Total Orders . | . . . . . . . . Ally Attacks . | . . . . . . . . Total Damage . | . . . . . . . . Kills . | . . . . . . . . Allies Corrupted . | . . . . . . . . Allies Melted . | . . . . . . . . Intel | -11 -10 -10 -10 -9 -8 -8 -8 ------- Run | Yrd Mat Min Exi Min Mat Gar Mat Robot Analysis Total . | . . . . . . . . Derelict Logs Recovered 3 | . . 2 . 1 . . . Drone Launches . | . . . . . . . . Drone Recoveries . | . . . . . . . . Exploration | -11 -10 -10 -10 -9 -8 -8 -8 ------------- Run | Yrd Mat Min Exi Min Mat Gar Mat Turns Passed 5788 | 185 734 380 455 502 813 1395 1324 Spaces Moved 3231 | 120 615 360 457 432 243 499 505 Core 12 | 5 . . . . 7 . . Treads 212 | 7 . . . . . 198 7 Legs 610 | . . . . . 112 . 498 Wheels 2077 | 108 615 360 457 432 105 . . Hover . | . . . . . . . . Flight 320 | . . . . . 19 301 . Fastest Speed 50 | 50 100 100 90 90 90 160 110 Average Speed 133 | 101 100 100 97 90 154 243 155 Slowest Speed 315 | 160 100 100 100 90 300 315 190 Overloaded Moves . | . . . . . . . . Propulsion Burnouts . | . . . . . . . . Robots Hopped . | . . . . . . . . Cave-ins Triggered . | . . . . . . . . Exploration Rate (%) 49 | 5 73 50 78 84 19 51 35 Regions Visited 7 Branch Regions 3 Pre-discovered Areas 1 | . . . 1 . . . . Known Exits Taken 2 | . 1 . . . 1 . . Unknown Exits Taken 4 | 1 . 1 1 1 . . . Scrap Searched 4 | . . 2 . 2 . . . Spaces Dug 34 | . 17 . . 3 . . 14 Terrain Destroyed 85 | . 44 . . 3 2 20 16 Melee 14 | . . . . . . . 14 Projectile 8 | . . . . 3 2 1 2 AOE 63 | . 44 . . . . 19 . Terrain Rammed . | . . . . . . . . Walls Destroyed . | . . . . . . . . Machines Disabled . | . . . . . . . . Actions | -11 -10 -10 -10 -9 -8 -8 -8 --------- Run | Yrd Mat Min Exi Min Mat Gar Mat Total 4356 | 151 684 377 466 533 607 624 914 Wait 789 | . 22 15 . 93 299 50 310 Move 3224 | 119 614 359 456 431 242 498 505 Hop . | . . . . . . . . Pick Up 49 | 5 5 . 2 1 11 14 11 Fast Attach 29 | 10 . . 1 1 6 5 6 Attach 14 | . 1 . . . 6 3 4 Detach 1 | . . . . . . . 1 Swap 31 | . 2 . 3 1 4 11 10 Drop 19 | 3 1 . 4 1 3 7 . Fire 148 | 14 34 3 . 5 29 30 33 Melee 35 | . . . . . 7 . 28 Ram 5 | . 5 . . . . . . Kick 6 | . . . . . . . 6 Crush . | . . . . . . . . Escape Stasis . | . . . . . . . . Rewire . | . . . . . . . . Trap 6 | . . . . . . 6 . Miscellaneous . | . . . . . . . . Route ------- -11/Scrapyard -10/Materials (discovered 3 exits: [*Mat] / *Min x2) -10/Mines (discovered 2 exits: [*Mat] / *Exi) -10/Exiles -9/Mines -8/Materials -8/Garrison (discovered 2 exits: [*Fac] / *Mat) -8/Materials History --------- Turn | Location | Event 4 | -11/Scrapyard | Discovered new exit (range 15) 186 | -11/Scrapyard | Entered Materials 223 | -10/Materials | Identified exit to Mines 310 | -10/Materials | Build established: Mutant 812 | -10/Materials | Discovered new exit (range 10) 920 | -10/Materials | Entered Mines 925 | -10/Mines | Learned Materials interactive machine intel 946 | -10/Mines | Found a hidden stash of uninstalled traps 1021 | -10/Mines | Deemed a non-threat by the Exiles lab entrance 1022 | -10/Mines | Discovered new exit (range 5) 1105 | -10/Mines | Discovered new exit (range 4) 1124 | -10/Mines | Learned Materials trap positions 1300 | -10/Mines | Entered Exiles 1325 | -10/Exiles | Met 8R-AWN 1341 | -10/Exiles | Met EX-HEX 1390 | -10/Exiles | Met EX-DEC 1412 | -10/Exiles | Visited The Gauntlet 1520 | -10/Exiles | Discovered new exit (range 10) 1567 | -10/Exiles | Learned location of Zion (-6) 1597 | -10/Exiles | Met EX-BIN 1612 | -10/Exiles | Aligned with FarCom system 1613 | -10/Exiles | Given EX-Vault access code 1638 | -10/Exiles | Opened EX-Vault 1649 | -10/Exiles | Found Lightpack 2.0 1677 | -10/Exiles | Warned to stay clear of 0b10 Research branches 1755 | -10/Exiles | Left Exiles lab with Lightpack 2.0 1755 | -10/Exiles | Entered Mines 1758 | -9/Mines | Received a Mining Laser from a helpful Derelict 2037 | -9/Mines | Learned Materials trap positions 2215 | -9/Mines | Discovered new exit (range 9) 2217 | -9/Mines | Found a damaged Exp. Sensor Array with a note attached 2219 | -9/Mines | Found Prototype Device 2219 | -9/Mines | Identified Exp. Sensor Array 2257 | -9/Mines | Entered Materials 2257 | -8/Materials | Evolved 4 slots: Propulsion x1, Utility x3 2258 | -8/Materials | Loaded intel: 20 trap records 2259 | -8/Materials | Loaded intel: 18 interactive machine locations 2580 | -8/Materials | Lost 3 parts (1n1u1w) 2834 | -8/Materials | Build established: Hauler-Mutant 3062 | -8/Materials | Identified exit to Garrison 3070 | -8/Materials | Entered Garrison 3097 | -8/Garrison | Installed Relay Interface Framework 3308 | -8/Garrison | Triggered checkpoint 3340 | -8/Garrison | Core integrity fell below 50% 3944 | -8/Garrison | Triggered checkpoint 4082 | -8/Garrison | Triggered checkpoint 4147 | -8/Garrison | Triggered checkpoint 4306 | -8/Garrison | Discovered new exit (range 10) 4332 | -8/Garrison | Triggered checkpoint 4440 | -8/Garrison | Triggered checkpoint 4459 | -8/Garrison | Discovered new exit (range 5) 4465 | -8/Garrison | Entered Materials 4466 | -8/Materials | Loaded intel: 26 trap records 4490 | -8/Materials | Lost 6 parts (1p2n1u2w) 4776 | -8/Materials | Garrison activated, responded to threat 4798 | -8/Materials | Lost 3 parts (1n1u1w) 5426 | -8/Materials | Core integrity fell below 20% 5789 | -8/Materials | Destroyed by H-55 Commando with Gauss Rifle Last Messages --------------- Imp. Ion Engine destroyed. K-01 Serf collects debris. S-10 Pest destroyed. Lgt. Armor Plating destroyed. Slug penetrates Wall. Atomic Centrifuge disabled. S-10 Pest suffers critical hit (Smash). Destroyed Lgt. Assault Rifle. Destroyed Flight Unit. S-10 Pest system corrupted by crushing effect. Lgt. Ion Engine fried. S-10 Pest destroyed. Slug penetrates Wall. System corrupted: Component data lost. Destroyed Flight Unit. S-10 Pest system corrupted by crushing effect. S-10 Pest destroyed. R-06 Scavenger collects Corrupted Flight Unit. Slug penetrates Wall. Map ----- +----------------------------------------------------+ | ] #???????????????????????????????????????? | | #???????????????????????????????????????? | | #???????????????????????????????????????? | | !!! #??+????????????????????????????????????? | | !!! #?? #???????????????????????????????????? | | !!! #?? #???????????????????????????????????? | | ############ ##??????????????????????????????????? | | ??????????????????????????????????? | | ??????????????????????????????????? | | " ??????????????????????????????????? | | #####+#### "%#???????????????????????????????????? | | # "#???????????????????????????????????? | | """ # #???????????????????????????????????? | | """ # #???????????????????????????????????? | | S """ # #???????????????????????????????????? | | "" """ # #???????????????????????????????????? | | "" """ # #???????????????????????????????????? | | # #???????????????????????????????????? | | ########## % #???????????????????????????????????? | | = ## = ####################????????????????? | | ## % # ????????????????? | | """ """ ## h # """ """ """ ???????????????? | | """ """ ## # "" """ """ #??????????????? | | """ """ ## ^ # """ """ """ #??????????????? | | """ """ ## ^ ^^ # r #??????????????? | | """ """ ##^ ^ # g@ #??????????????? | | ## " " ###+#####+####???????????????? | | #####+### """ w +????????????? | | ??? ####??????????????????? | | ? g #?????????????????????? | | ###########+##?????????????????????? | | #??????????????????????????????????? | | ###############??????????????????????????????????? | | ?????????????????????????????????????????????????? | | ?????????????????????????????????????????????????? | | ?????????????????????????????????????????????????? | | ?????????????????????????????????????????????????? | | ?????????????????????????????????????????????????? | | ?????????????????????????????????????????????????? | | ?????????????????????????????????????????????????? | | ?????????????????????????????????????????????????? | | ?????????????????????????????????????????????????? | | ?????????????????????????????????????????????????? | | ?????????????????????????????????????????????????? | | ?????????????????????????????????????????????????? | | ?????????????????????????????????????????????????? | | ?????????????????????????????????????????????????? | | ?????????????????????????????????????????????????? | | ?????????????????????????????????????????????????? | | ?????????????????????????????????????????????????? | +----------------------------------------------------+ Best States ------------- Heat Dissipation 45 Energy Generation 14 Energy Capacity 265 Matter Stores 300 Matter Capacity 300 Sight Range 16 Robot Scan Range 20 Terrain Scan Density 10 Armor Coverage 150 Utility Shielding 33 Evasion (%) 55 Recoil Reduction 2 Item Schematics ----------------- Hvy. Particle Gun | -8/Materials | Scanalyzed Robot Schematics ------------------ None Fabricated ------------ Nothing Alien Tech Used ----------------- None Achievements -------------- It's Just You Challenges ------------ None Game ------ Seed RocketHypervelocityLance Manual? 0 Play Time 01:12:28 Cumulative 18.2 hours Start 2024.11.10 @ 12:54:21 End 2024.11.10 @ 14:42:03 Sessions 1 Manual Loads 0 Difficulty Rogue Special Mode None Game No. 9 Rogue 9 Adventurer 0 Explorer 0 Win Type - Total 0 Types 0/0/0/0/0/0/0/0/0 Lore% 8 Gallery% 16 Achievement% 16 Wizard Run 0 Options --------- Layout 1 ASCII 0 Keyboard 0 Movement Arrows Keybinds 0 Fullscreen 1 Font 24/Smallcaps Map View 50x35 Zoom Use 0% Tactical HUD 0 Map Filters NONE Filters NONE Steam 1 RUN: d43488e0-9e89-452d-abf9-0a5ed580fc9c